bitfinex-derivatives/quotes_BTCF0:USTF0_20250614
["timestamp","ask_amount","ask_price","bid_price","bid_amount"]
[1749869878334,1.07988273,105460.0,105450.0,0.01496339]
[1749869878931,1.22779652,105460.0,105450.0,0.01496369]
[1749869879132,1.22779652,105460.0,105450.0,0.01596369]
[1749869879332,1.07988273,105460.0,105450.0,0.01596369]
[1749869879640,1.07988273,105460.0,105450.0,0.01696369]
[1749869879932,1.07988273,105460.0,105450.0,0.00214186]
[1749869880131,1.07988273,105460.0,105450.0,0.01696371]
[1749869880340,1.22779652,105460.0,105450.0,0.01696371]
[1749869880733,0.9615517,105460.0,105450.0,0.00214186]
[1749869881040,0.9615517,105460.0,105450.0,0.01696371]
[1749869881235,0.9615517,105460.0,105450.0,0.01596371]
[1749869881434,0.9615517,105460.0,105450.0,0.01496371]
[1749869881636,0.9615517,105460.0,105450.0,0.00014186]
[1749869881637,0.9635517,105460.0,105450.0,0.00014186]
[1749869882433,0.9635517,105460.0,105450.0,0.01496372]
[1749869883141,1.08188273,105460.0,105450.0,0.01496372]
[1749869883535,1.08188273,105460.0,105450.0,0.00014186]
[1749869884038,1.08188273,105460.0,105450.0,0.01496372]
[1749869884241,1.08188273,105460.0,105450.0,0.00014186]
[1749869884637,1.08188273,105460.0,105450.0,0.01496393]
[1749869884840,1.08188273,105460.0,105450.0,0.01910228]
[1749869885239,1.08188273,105460.0,105450.0,0.00428021]
[1749869885642,1.08188273,105460.0,105450.0,0.01910224]
[1749869885844,1.08188273,105460.0,105450.0,0.0191021]
[1749869886036,1.08188273,105460.0,105450.0,0.00428021]
[1749869886232,1.08188273,105460.0,105450.0,0.01910208]
[1749869886438,1.25844273,105460.0,105450.0,0.00428021]
[1749869886645,1.25844273,105460.0,105450.0,0.05170182]
[1749869886847,1.25844273,105460.0,105450.0,0.05170186]
[1749869887142,1.25844273,105460.0,105450.0,0.08480186]
[1749869887536,1.1401117,105460.0,105450.0,0.08480186]
[1749869887743,0.7773117,105460.0,105450.0,0.08480132]
[1749869887942,0.7793117,105460.0,105450.0,0.08480132]
[1749869888144,0.7793117,105460.0,105450.0,0.08480134]
[1749869888346,0.7793117,105460.0,105450.0,0.08480126]
[1749869888646,0.7793117,105460.0,105450.0,0.08480125]
[1749869889240,0.7793117,105460.0,105450.0,0.06998021]
[1749869889640,0.7793117,105460.0,105450.0,0.08480125]
[1749869889837,0.7793117,105460.0,105450.0,0.06998021]
[1749869890042,0.7793117,105460.0,105450.0,0.08480125]
[1749869890347,0.7793117,105460.0,105450.0,0.06998021]
[1749869890544,0.89764273,105460.0,105450.0,0.08480125]
[1749869890746,0.89764273,105460.0,105450.0,0.06998021]
[1749869890947,0.89764273,105460.0,105450.0,0.08480125]
[1749869891437,0.89764273,105460.0,105450.0,0.06998021]
[1749869891637,0.89764273,105460.0,105450.0,0.08480125]
[1749869893142,0.89764273,105460.0,105450.0,0.06998021]
[1749869893343,0.89764273,105460.0,105450.0,0.08480125]
[1749869893750,0.89764273,105460.0,105450.0,0.06998021]
[1749869894051,0.89764273,105460.0,105450.0,0.08480125]
[1749869894947,0.89764273,105460.0,105450.0,0.06998021]
[1749869895152,0.89764273,105460.0,105450.0,0.08480125]
[1749869895549,0.89764273,105460.0,105450.0,0.06998021]
[1749869895851,0.89764273,105460.0,105450.0,0.08480125]
[1749869897745,0.89764273,105460.0,105450.0,0.06998021]
[1749869897945,0.89764273,105460.0,105450.0,0.08480125]
[1749869899050,0.62988273,105460.0,105450.0,0.25954981]
[1749869899240,0.5115517,105460.0,105450.0,0.66777085]
[1749869899446,0.5115517,105460.0,105450.0,1.04141918]
[1749869899747,0.5115517,105460.0,105450.0,1.04141756]
[1749869899946,0.5115517,105460.0,105450.0,1.0414176]
[1749869900147,0.5115517,105460.0,105450.0,1.04141761]
[1749869900346,0.5115517,105460.0,105450.0,0.69659814]
[1749869900553,0.5115517,105460.0,105450.0,0.72197148]
[1749869900756,0.5125517,105460.0,105450.0,0.71141761]
[1749869901154,0.5125517,105460.0,105450.0,0.72200959]
[1749869901544,0.5125517,105460.0,105450.0,0.69659814]
[1749869901749,0.5125517,105460.0,105450.0,0.70719011]
[1749869901948,0.5125517,105460.0,105450.0,0.69659814]
[1749869902253,0.5125517,105460.0,105450.0,0.72200958]
[1749869902660,0.5125517,105460.0,105450.0,0.70719011]
[1749869903343,0.5125517,105460.0,105450.0,0.72200958]
[1749869903748,0.5125517,105460.0,105450.0,0.71141761]
[1749869903951,0.5125517,105460.0,105450.0,0.72200958]
[1749869904155,0.5125517,105460.0,105450.0,0.71141761]
[1749869904356,0.5125517,105460.0,105450.0,0.72200958]
[1749869904758,0.5125517,105460.0,105450.0,0.70717749]
[1749869904954,0.5125517,105460.0,105450.0,0.72199696]
[1749869905252,0.5125517,105460.0,105450.0,0.69659814]
[1749869905453,0.5125517,105460.0,105450.0,0.71141761]
[1749869905944,0.5125517,105460.0,105450.0,0.70717749]
[1749869906149,0.5125517,105460.0,105450.0,0.71141761]
[1749869906350,0.5125517,105460.0,105450.0,0.72199696]
[1749869906655,0.5125517,105460.0,105450.0,0.72197036]
[1749869906857,0.5125517,105460.0,105450.0,0.70715089]
[1749869907055,0.5125517,105460.0,105450.0,0.71141761]
[1749869907256,0.5125517,105460.0,105450.0,0.72197036]
[1749869907453,0.5125517,105460.0,105450.0,0.70715089]
[1749869907760,0.5125517,105460.0,105450.0,0.71141761]
[1749869907959,0.5125517,105460.0,105450.0,0.72197036]
[1749869908162,0.5125517,105460.0,105450.0,0.71141761]
[1749869908457,0.5125517,105460.0,105450.0,0.69659814]
[1749869908656,0.5125517,105460.0,105450.0,0.70715089]
[1749869908858,0.5125517,105460.0,105450.0,0.72197036]
[1749869910860,0.5125517,105460.0,105450.0,0.89845036]
[1749869911061,0.5125517,105460.0,105450.0,0.8984502]
[1749869911964,0.5125517,105460.0,105450.0,0.88789761]
[1749869912163,0.5125517,105460.0,105450.0,0.87307814]
[1749869912363,0.5125517,105460.0,105450.0,0.88789761]
[1749869912862,0.5125517,105460.0,105450.0,0.87307814]
[1749869913168,0.5125517,105460.0,105450.0,0.88789761]
[1749869913667,0.5125517,105460.0,105450.0,0.87307814]
[1749869913858,0.5125517,105460.0,105450.0,0.88789761]
[1749869914054,0.5125517,105460.0,105450.0,0.87307814]
[1749869914266,0.5125517,105460.0,105450.0,0.88789761]
[1749869914566,0.5125517,105460.0,105450.0,0.87307814]
[1749869914765,0.5125517,105460.0,105450.0,0.88789761]
[1749869914958,0.5125517,105460.0,105450.0,0.87307814]
[1749869915159,0.5125517,105460.0,105450.0,0.88789761]
[1749869915561,0.5125517,105460.0,105450.0,0.87307814]
[1749869915770,0.5125517,105460.0,105450.0,0.88789761]
[1749869916968,0.5125517,105460.0,105450.0,0.87307814]
[1749869917167,0.5125517,105460.0,105450.0,0.88789761]
[1749869917564,0.5125517,105460.0,105450.0,0.87307814]
[1749869917871,0.5125517,105460.0,105450.0,0.88789761]
[1749869918261,0.5125517,105460.0,105450.0,0.87307814]
[1749869918665,0.5125517,105460.0,105450.0,0.88789761]
[1749869918863,3.2936635,105460.0,105420.0,6e-08]
[1749869919064,0.1896236,105420.0,105410.0,0.08878084]
[1749869919364,0.1896416,105410.0,105400.0,0.3965396]
[1749869919564,0.1896416,105410.0,105400.0,0.7899396]
[1749869919960,0.1896416,105410.0,105400.0,0.6134596]
[1749869920270,0.1896416,105410.0,105400.0,1.5558996]
[1749869920972,0.1896416,105410.0,105400.0,1.5648996]
[1749869921175,0.1896416,105410.0,105400.0,1.5778996]
[1749869922966,0.26375171,105410.0,105400.0,1.5778996]
[1749869923875,0.00014186,105420.0,105410.0,0.1896416]
[1749869924073,0.18976546,105420.0,105410.0,2.7891816]
[1749869924373,0.18976546,105420.0,105410.0,2.5040456]
[1749869924763,0.18976546,105420.0,105410.0,2.8640456]
[1749869924967,0.18976546,105420.0,105410.0,2.5040456]
[1749869925776,0.18976546,105420.0,105410.0,2.8840456]
[1749869926168,0.18976546,105420.0,105410.0,2.9030456]
[1749869926374,0.18976546,105420.0,105410.0,2.8930456]
[1749869926873,0.18976546,105420.0,105410.0,2.8730456]
[1749869927374,0.18976546,105420.0,105410.0,2.5230456]
[1749869927674,0.18976546,105420.0,105410.0,2.8330456]
[1749869928068,0.18976546,105420.0,105410.0,2.5230456]
[1749869928774,0.18976546,105420.0,105410.0,2.8214456]
[1749869928977,0.00014186,105420.0,105410.0,3.1914456]
[1749869929273,0.00014186,105420.0,105410.0,2.8214456]
[1749869929472,0.00014186,105420.0,105410.0,3.1614456]
[1749869930772,0.00014186,105420.0,105410.0,2.8214456]
[1749869930972,0.00014186,105420.0,105410.0,3.21767932]
[1749869931163,0.3317994,105440.0,105430.0,0.1896055]
[1749869931368,0.3317994,105440.0,105430.0,2.3688384]
[1749869931369,0.5617994,105440.0,105430.0,2.3688384]
[1749869931576,0.5617994,105440.0,105430.0,2.4639384]
[1749869931777,0.5617994,105440.0,105430.0,2.44911696]
[1749869931973,0.5617994,105440.0,105430.0,2.46393826]
[1749869932677,0.5647994,105440.0,105430.0,2.46393826]
[1749869933074,0.5647994,105440.0,105430.0,2.4225268]
[1749869933577,0.5647994,105440.0,105430.0,2.42247581]
[1749869934077,0.5647994,105440.0,105430.0,2.4077055]
[1749869934278,0.5647994,105440.0,105430.0,2.42247579]
[1749869934470,0.5647994,105440.0,105430.0,2.4077055]
[1749869934670,0.5647994,105440.0,105430.0,2.42247579]
[1749869935066,0.5647994,105440.0,105430.0,2.4077055]
[1749869935266,0.5647994,105440.0,105430.0,2.42247579]
[1749869935678,0.5647994,105440.0,105430.0,2.4077055]
[1749869936071,0.5647994,105440.0,105430.0,2.42247579]
[1749869936276,0.5647994,105440.0,105430.0,2.42247578]
[1749869936475,0.5647994,105440.0,105430.0,2.4077055]
[1749869936675,0.5647994,105440.0,105430.0,2.42246816]
[1749869936875,0.5647994,105440.0,105430.0,2.4077055]
[1749869937775,0.1896054,105430.0,105420.0,6e-08]
[1749869937973,0.1896414,105410.0,105400.0,0.17644]
[1749869938174,0.1896414,105410.0,105390.0,0.8915756]
[1749869938175,0.1896594,105400.0,105390.0,1.1609577]
[1749869938369,0.1996594,105400.0,105390.0,2.03916549]
[1749869938569,0.1996594,105400.0,105390.0,2.52560549]
[1749869938877,0.1996594,105400.0,105390.0,2.5256097]
[1749869939076,0.1996594,105400.0,105390.0,2.5123914]
[1749869939279,0.1996594,105400.0,105390.0,2.5256097]
[1749869939471,0.1996594,105400.0,105390.0,1.5660314]
[1749869939671,0.1996594,105400.0,105390.0,1.5942497]
[1749869939874,0.1996594,105400.0,105390.0,1.59424975]
[1749869940073,0.1996594,105400.0,105390.0,2.55148974]
[1749869940389,0.1996594,105400.0,105390.0,2.5382714]
[1749869940778,0.1996594,105400.0,105390.0,2.55148971]
[1749869940974,0.1996594,105400.0,105390.0,2.5382714]
[1749869941178,0.1996594,105400.0,105390.0,2.5383114]
[1749869941480,0.1996594,105400.0,105390.0,2.55163233]
[1749869941780,0.1996594,105400.0,105390.0,2.55163228]
[1749869941975,0.1996594,105400.0,105390.0,2.5383114]
[1749869942185,0.1996594,105400.0,105390.0,2.5516323]
[1749869942382,0.1996594,105400.0,105390.0,2.5383114]
[1749869942574,0.1996594,105400.0,105390.0,2.56645801]
[1749869943282,0.1996594,105400.0,105390.0,2.566458]
[1749869944174,0.1996594,105400.0,105390.0,2.55163228]
[1749869944375,0.01,105400.0,105390.0,1.98093166]
[1749869944571,0.31402439,105410.0,105400.0,0.1896594]
[1749869944773,0.31402439,105410.0,105400.0,1.07488051]
[1749869944976,0.31402439,105410.0,105400.0,1.02028376]
[1749869945376,0.31402439,105410.0,105400.0,1.0054594]
[1749869945572,0.31402439,105410.0,105400.0,1.01860968]
[1749869945772,0.31402439,105410.0,105400.0,1.04228382]
[1749869945976,0.31402439,105410.0,105400.0,1.04060968]
[1749869946180,0.00014186,105410.0,105400.0,1.13715582]
[1749869946375,0.00014186,105410.0,105400.0,1.13540538]
[1749869946582,0.00014186,105410.0,105400.0,2.09626918]
[1749869946780,0.00014186,105410.0,105400.0,2.08319509]
[1749869947377,0.00014186,105410.0,105400.0,2.0683714]
[1749869947578,0.00014186,105410.0,105400.0,2.08319509]
[1749869948378,0.00014186,105410.0,105400.0,2.0683714]
[1749869948579,0.00014186,105410.0,105400.0,2.08319509]
[1749869948781,0.00014186,105410.0,105400.0,2.0683714]
[1749869948979,0.00014186,105410.0,105400.0,2.14229102]
[1749869949284,0.00014186,105410.0,105400.0,2.04741902]
[1749869949487,0.00014186,105410.0,105400.0,2.34581902]
[1749869950380,0.00014186,105410.0,105400.0,2.33099533]
[1749869950578,0.00014186,105410.0,105400.0,2.34581902]
[1749869951578,0.00014186,105410.0,105400.0,2.43438891]
[1749869951775,0.00014186,105410.0,105400.0,2.41956522]
[1749869951977,0.00014186,105410.0,105400.0,2.43438034]
[1749869952181,0.00014186,105410.0,105400.0,2.41956522]
[1749869952681,0.00014186,105410.0,105400.0,2.43438034]
[1749869953187,0.00014186,105410.0,105400.0,2.33099533]
[1749869953388,0.00014186,105410.0,105400.0,2.34581045]
[1749869954089,0.18978316,105410.0,105400.0,2.34581045]
[1749869955786,0.18978316,105410.0,105400.0,2.33099533]
[1749869956291,0.18978316,105410.0,105400.0,2.34581045]
[1749869956681,0.18978316,105410.0,105400.0,2.34581902]
[1749869956883,0.00014186,105410.0,105400.0,2.43438891]
[1749869957087,0.00014186,105410.0,105400.0,2.41956522]
[1749869957287,0.00014186,105410.0,105400.0,2.43438858]
[1749869957487,0.00014186,105410.0,105400.0,2.43358847]
[1749869957688,0.00014186,105410.0,105400.0,2.41876522]
[1749869958285,0.00014186,105410.0,105400.0,2.43358847]
[1749869959092,0.81300402,105430.0,105400.0,2.32397782]
[1749869959286,0.9467305,105430.0,105420.0,0.1896235]
[1749869959479,0.9467305,105430.0,105420.0,1.52076628]
[1749869959683,0.9467305,105430.0,105420.0,1.61756624]
[1749869959993,0.9467305,105430.0,105420.0,1.61756622]
[1749869960394,0.9467305,105430.0,105420.0,1.61856622]
[1749869960994,0.9467305,105430.0,105420.0,0.67224622]
[1749869961291,0.9467305,105430.0,105420.0,1.91712622]
[1749869961891,0.9467305,105430.0,105420.0,1.9023035]
[1749869962094,0.9467305,105430.0,105420.0,1.91812622]
[1749869962492,0.9467305,105430.0,105420.0,1.9033035]
[1749869962695,0.9467305,105430.0,105420.0,1.91812622]
[1749869962895,0.9467305,105430.0,105420.0,1.91812621]
[1749869963300,0.9467305,105430.0,105420.0,1.9033035]
[1749869963504,0.9467305,105430.0,105420.0,1.91806837]
[1749869964202,0.9467305,105430.0,105420.0,1.9033035]
[1749869964501,0.9467305,105430.0,105420.0,1.91805178]
[1749869966391,0.9467305,105430.0,105420.0,1.9033035]
[1749869966596,0.9467305,105430.0,105420.0,1.91805178]
[1749869967398,1.00559912,105430.0,105420.0,1.91805178]
[1749869967603,1.00559912,105430.0,105420.0,1.9033035]
[1749869967901,1.00559912,105430.0,105420.0,1.91805178]
[1749869968104,1.00559912,105430.0,105420.0,1.9033035]
[1749869968297,1.00559912,105430.0,105420.0,1.91803675]
[1749869969299,0.76559912,105430.0,105420.0,1.9033035]
[1749869969502,0.78559912,105430.0,105420.0,1.91803675]
[1749869969799,0.78559912,105430.0,105420.0,1.5333035]
[1749869970105,0.78559912,105430.0,105420.0,1.54803675]
[1749869970505,0.78559912,105430.0,105420.0,1.5333035]
[1749869970693,0.78559912,105430.0,105420.0,1.54803675]
[1749869971305,0.78559912,105430.0,105420.0,1.5333035]
[1749869971805,0.78559912,105430.0,105420.0,1.54803675]
[1749869972503,0.78559912,105430.0,105420.0,1.5333035]
[1749869972703,0.78559912,105430.0,105420.0,1.54803675]
[1749869973008,0.87390941,105430.0,105420.0,1.54803675]
[1749869973399,0.87390941,105430.0,105420.0,1.54803443]
[1749869973600,0.87390941,105430.0,105420.0,1.5333035]
[1749869973904,0.87390941,105430.0,105420.0,1.54803443]
[1749869974103,0.87390941,105430.0,105420.0,1.86803443]
[1749869974304,0.87390941,105430.0,105420.0,1.86807328]
[1749869974806,0.87390941,105430.0,105420.0,2.68779328]
[1749869975810,0.87390941,105430.0,105420.0,2.68777177]
[1749869976509,0.81504079,105430.0,105420.0,2.68777177]
[1749869978110,0.81504079,105430.0,105420.0,2.6730235]
[1749869978312,0.81504079,105430.0,105420.0,2.68776829]
[1749869978613,0.79504079,105430.0,105420.0,2.6730235]
[1749869978911,0.79504079,105430.0,105420.0,2.68776829]
[1749869979708,0.79504079,105430.0,105420.0,2.6730235]
[1749869979909,0.79504079,105430.0,105420.0,2.68776829]
[1749869980708,0.49334781,105430.0,105420.0,2.68776818]
[1749869980903,0.20891731,105430.0,105420.0,2.3746235]
[1749869981103,0.39852291,105430.0,105420.0,2.79459376]
[1749869981299,0.24871262,105430.0,105420.0,2.8536895]
[1749869981504,0.05910702,105430.0,105420.0,2.83738524]
[1749869982212,0.05910702,105430.0,105420.0,2.85212926]
[1749869982404,0.05910702,105430.0,105420.0,2.85213042]
[1749869982714,0.05910702,105430.0,105420.0,2.83738524]
[1749869982910,0.24871262,105430.0,105420.0,2.85209042]
[1749869983211,0.1896056,105430.0,105420.0,1.9513545]
[1749869983410,0.1896056,105430.0,105420.0,2.8962345]
[1749869983711,0.1896056,105430.0,105420.0,2.93774622]
[1749869984113,0.1896056,105430.0,105420.0,2.9352358]
[1749869984410,0.1896056,105430.0,105420.0,2.94998098]
[1749869985007,0.1896056,105430.0,105420.0,2.9352358]
[1749869985207,0.87555095,105440.0,105430.0,0.1896057]
[1749869985405,0.99555095,105440.0,105430.0,0.67708481]
[1749869986505,0.99555095,105440.0,105430.0,0.64710632]
[1749869987314,0.99855095,105440.0,105430.0,0.64710632]
[1749869987611,0.99855095,105440.0,105430.0,0.63233963]
[1749869989506,0.87855095,105440.0,105430.0,0.63233963]
[1749869989906,0.83115015,105440.0,105430.0,0.63233963]
[1749869990108,0.74283986,105440.0,105430.0,0.69473963]
[1749869990714,0.19274456,105440.0,105430.0,1.05553963]
[1749869990911,0.00314186,105440.0,105430.0,1.99897963]
[1749869991215,0.00314186,105440.0,105430.0,2.12983625]
[1749869991406,0.00314186,105440.0,105430.0,2.04126636]
[1749869991604,0.00014186,105440.0,105430.0,2.12983625]
[1749869991805,0.00014186,105440.0,105430.0,2.14565614]
[1749869992009,0.00014186,105440.0,105430.0,2.14665614]
[1749869992306,0.00014186,105440.0,105430.0,2.13183625]
[1749869992518,0.18972956,105440.0,105430.0,2.05808625]
[1749869993317,0.18972956,105440.0,105430.0,2.04326636]
[1749869993511,0.18972956,105440.0,105430.0,2.05808625]
[1749869993816,0.00014186,105440.0,105430.0,2.90772625]
[1749869994017,0.00014186,105440.0,105430.0,2.89290636]
[1749869994214,0.00014186,105440.0,105430.0,2.90772625]
[1749869994411,0.00014186,105440.0,105430.0,2.89290636]
[1749869994611,0.00014186,105440.0,105430.0,2.90772625]
[1749869994917,0.00014186,105440.0,105430.0,2.89290636]
[1749869995118,0.00014186,105440.0,105430.0,2.90772625]
[1749869995315,0.00014186,105440.0,105430.0,2.89290636]
[1749869995617,0.00014186,105440.0,105430.0,2.90772625]
[1749869995917,0.18972946,105440.0,105430.0,2.89270636]
[1749869996114,0.00014186,105440.0,105430.0,2.90752625]
[1749869998612,0.00014186,105440.0,105430.0,2.89270636]
[1749869999017,0.00014186,105440.0,105430.0,2.90752625]
[1749869999413,0.00014186,105440.0,105430.0,2.89270636]
[1749869999615,0.00014186,105440.0,105430.0,2.90752625]
[1749869999815,0.00014186,105440.0,105430.0,3.20592625]
[1749870000817,0.00014186,105440.0,105430.0,3.20564584]
[1749870001015,0.00014186,105440.0,105430.0,3.16123274]
[1749870001217,0.00014186,105440.0,105430.0,3.24976238]
[1749870001715,0.00014186,105440.0,105430.0,3.24976241]
[1749870002218,0.18972946,105440.0,105430.0,3.24490324]
[1749870002421,0.18972946,105440.0,105430.0,3.20069221]
[1749870002619,0.18972946,105440.0,105430.0,3.21551171]
[1749870002818,0.18972946,105440.0,105430.0,3.20069221]
[1749870003021,0.18972946,105440.0,105430.0,3.21551179]
[1749870003415,0.00014186,105440.0,105430.0,3.20069221]
[1749870003816,0.00014186,105440.0,105430.0,3.21551179]
[1749870005116,0.00014186,105440.0,105430.0,3.20069221]
[1749870005316,0.00014186,105440.0,105430.0,3.21551179]
[1749870005916,0.00014186,105440.0,105430.0,3.20069221]
[1749870006117,0.00014186,105440.0,105430.0,2.25777221]
[1749870006315,0.00014186,105440.0,105430.0,3.21551175]
[1749870006515,0.00014186,105440.0,105430.0,3.24490324]
[1749870006916,0.00014186,105440.0,105430.0,3.25972233]
[1749870008122,0.73486449,105460.0,105450.0,0.1895695]
[1749870008422,0.81486449,105460.0,105450.0,2.66673974]
[1749870009423,0.74665612,105460.0,105450.0,2.66673979]
[1749870010519,0.74665612,105460.0,105450.0,2.66670444]
[1749870011019,0.73686449,105460.0,105450.0,2.66670444]
[1749870011217,0.73686449,105460.0,105450.0,2.65192122]
[1749870011721,0.73786449,105460.0,105450.0,2.00830444]
[1749870013122,0.66139657,105460.0,105450.0,2.00830444]
[1749870013423,0.6495542,105460.0,105450.0,2.00830444]
[1749870014326,0.6495542,105460.0,105450.0,1.99352122]
[1749870014529,0.6495542,105460.0,105450.0,2.00830444]
[1749870015127,0.6495542,105460.0,105450.0,1.99352122]
[1749870015328,0.6495542,105460.0,105450.0,2.00830444]
[1749870015530,0.6495542,105460.0,105450.0,1.99352122]
[1749870016019,0.6495542,105460.0,105450.0,2.00831717]
[1749870016628,0.6495542,105460.0,105450.0,2.32831717]
[1749870016821,0.6495542,105460.0,105450.0,2.32831716]
[1749870017027,0.66145179,105460.0,105450.0,2.31352122]
[1749870017227,0.66145179,105460.0,105450.0,2.32831719]
[1749870017622,0.66145179,105460.0,105450.0,2.32833983]
[1749870018431,0.74976208,105460.0,105450.0,2.31352122]
[1749870018627,0.74976208,105460.0,105450.0,2.32833983]
[1749870019433,0.66145179,105460.0,105450.0,2.32833981]
[1749870019626,0.74976208,105460.0,105450.0,2.37270347]
[1749870020228,0.74976208,105460.0,105450.0,2.37270344]
[1749870020424,0.66145179,105460.0,105450.0,2.37270342]
[1749870020729,0.74976208,105460.0,105450.0,2.37270342]
[1749870020930,0.74976208,105460.0,105450.0,2.35788488]
[1749870021130,0.74976208,105460.0,105450.0,2.37270342]
[1749870021623,0.74976208,105460.0,105450.0,2.35788488]
[1749870021824,0.74976208,105460.0,105450.0,2.37270342]
[1749870022030,0.74976208,105460.0,105450.0,2.35788488]
[1749870022218,0.74976208,105460.0,105450.0,2.37270342]
[1749870022422,0.74976208,105460.0,105450.0,2.35788488]
[1749870022629,0.74976208,105460.0,105450.0,2.37270342]
[1749870023029,0.74976208,105460.0,105450.0,2.35788488]
[1749870023229,0.74976208,105460.0,105450.0,2.32833976]
[1749870023530,0.74976208,105460.0,105450.0,2.3283397]
[1749870023726,0.74976208,105460.0,105450.0,2.32833974]
[1749870024132,0.73786449,105460.0,105450.0,2.31353689]
[1749870024328,0.73786449,105460.0,105450.0,2.3283554]
[1749870024723,0.73786449,105460.0,105450.0,2.31353689]
[1749870025119,0.74956939,105460.0,105450.0,2.3283554]
[1749870025631,0.74956939,105460.0,105450.0,2.31353689]
[1749870025838,0.74956939,105460.0,105450.0,2.3283554]
[1749870026027,0.74956939,105460.0,105450.0,2.31353689]
[1749870026330,0.74956939,105460.0,105450.0,2.3283554]
[1749870026730,0.74956939,105460.0,105450.0,2.31353689]
[1749870026932,0.74956939,105460.0,105450.0,2.3283554]
[1749870027120,0.74956939,105460.0,105450.0,2.31353689]
[1749870027323,0.74996326,105460.0,105450.0,1.37065689]
[1749870027523,0.6612591,105460.0,105450.0,2.31321689]
[1749870027722,0.6612591,105460.0,105450.0,2.32803538]
[1749870027932,0.6612591,105460.0,105450.0,2.31321689]
[1749870028130,0.76788523,105460.0,105450.0,2.31321689]
[1749870028327,0.6495542,105460.0,105450.0,2.32803538]
[1749870028531,0.6495542,105460.0,105450.0,2.31321689]
[1749870028929,0.6495542,105460.0,105450.0,2.32803538]
[1749870029127,0.86139069,105460.0,105450.0,2.34471689]
[1749870029329,0.86139069,105460.0,105450.0,2.35953538]
[1749870029528,0.86139069,105460.0,105450.0,2.34471689]
[1749870029834,0.97972172,105460.0,105450.0,2.35953538]
[1749870030432,0.97972172,105460.0,105450.0,1.41697538]
[1749870030631,0.97972172,105460.0,105450.0,2.35953538]
[1749870030829,0.97972172,105460.0,105450.0,2.34471689]
[1749870031132,0.97972172,105460.0,105450.0,2.35953538]
[1749870031435,0.86139069,105460.0,105450.0,2.35953538]
[1749870032436,0.97972172,105460.0,105450.0,2.35953538]
[1749870032631,0.97972172,105460.0,105450.0,2.34471689]
[1749870032839,0.97972172,105460.0,105450.0,2.35953538]
[1749870033033,0.97972172,105460.0,105450.0,2.34471689]
[1749870033339,0.95012565,105460.0,105450.0,2.38912059]
[1749870033531,0.95012565,105460.0,105450.0,0.04152739]
[1749870033731,0.1895696,105450.0,105440.0,0.00014186]
[1749870033939,1.1623696,105450.0,105440.0,0.00014186]
[1749870034136,1.00720961,105450.0,105440.0,0.01496483]
[1749870034326,1.00720961,105450.0,105440.0,0.01496503]
[1749870034530,1.12535521,105450.0,105440.0,0.01496503]
[1749870035037,0.1895877,105440.0,105430.0,0.81952]
[1749870035337,0.9326877,105440.0,105430.0,0.996]
[1749870036635,1.02119931,105440.0,105430.0,0.996]
[1749870036937,1.05189931,105440.0,105430.0,0.996]
[1749870037134,1.05189931,105440.0,105430.0,1.01082325]
[1749870037439,1.05589931,105440.0,105430.0,1.01082325]
[1749870038639,1.05589931,105440.0,105430.0,0.996]
[1749870039234,1.05589931,105440.0,105430.0,1.01082325]
[1749870039440,1.05589931,105440.0,105430.0,0.996]
[1749870039642,1.05589931,105440.0,105430.0,1.01082325]
[1749870040039,1.05589931,105440.0,105430.0,0.996]
[1749870040240,1.05589931,105440.0,105430.0,1.01082325]
[1749870040437,0.1896056,105430.0,105420.0,0.00014186]
[1749870040630,0.094825,105410.0,105400.0,0.17652]
[1749870040837,1.432401,105410.0,105400.0,0.19134575]
[1749870041037,1.176401,105410.0,105400.0,0.20466646]
[1749870041238,1.496401,105410.0,105400.0,0.20466646]
[1749870041434,1.556401,105410.0,105400.0,0.20466646]
[1749870041837,1.556401,105410.0,105400.0,0.20468746]
[1749870042137,1.556401,105410.0,105400.0,0.17652]
[1749870042343,1.56821783,105410.0,105400.0,0.20334726]
[1749870042539,1.56821783,105410.0,105400.0,0.20334725]
[1749870042939,1.56821783,105410.0,105400.0,0.2033473]
[1749870043140,1.50929763,105410.0,105400.0,0.20194338]
[1749870043437,1.50929763,105410.0,105400.0,0.22577068]
[1749870043637,1.50929763,105410.0,105400.0,0.21094339]
[1749870043844,1.50929763,105410.0,105400.0,0.22577069]
[1749870044142,1.12929763,105410.0,105400.0,0.41543019]
[1749870044337,1.12929763,105410.0,105400.0,0.40200644]
[1749870044533,1.50929763,105410.0,105400.0,0.03582694]
[1749870044746,0.1896594,105400.0,105390.0,0.00014186]
[1749870044943,1.0239796,105400.0,105390.0,0.01344125]
[1749870045145,0.9650594,105400.0,105390.0,0.37967029]
[1749870045445,0.9722594,105400.0,105390.0,0.17666186]
[1749870045644,1.0053594,105400.0,105390.0,0.18987665]
[1749870045844,1.0053594,105400.0,105390.0,0.20387665]
[1749870046050,1.0053594,105400.0,105390.0,0.02414186]
[1749870046349,1.0053594,105400.0,105390.0,0.01014186]
[1749870046542,1.0063594,105400.0,105390.0,0.19998315]
[1749870046743,1.0093594,105400.0,105390.0,0.18998322]
[1749870046943,1.0093594,105400.0,105390.0,0.17670186]
[1749870047143,1.0093594,105400.0,105390.0,0.19000833]
[1749870047348,1.0093594,105400.0,105390.0,0.17670186]
[1749870047751,1.0093594,105400.0,105390.0,0.19000833]
[1749870048049,1.0093594,105400.0,105390.0,0.17670186]
[1749870048843,1.0093594,105400.0,105390.0,0.19000831]
[1749870049046,1.0093594,105400.0,105390.0,0.19000833]
[1749870049948,1.0093594,105400.0,105390.0,0.17670186]
[1749870050150,1.0093594,105400.0,105390.0,0.19009823]
[1749870050351,1.0093594,105400.0,105390.0,0.17670186]
[1749870050647,1.0093594,105400.0,105390.0,0.19009819]
[1749870050848,1.0093594,105400.0,105390.0,0.200791]
[1749870051145,1.0093594,105400.0,105390.0,0.17670186]
[1749870051349,1.0093594,105400.0,105390.0,0.19033902]
[1749870051650,1.0093594,105400.0,105390.0,0.19033903]
[1749870052043,1.0093594,105400.0,105390.0,0.38001633]
[1749870052350,1.0093594,105400.0,105390.0,0.3799725]
[1749870052846,0.8093594,105400.0,105390.0,0.36637916]
[1749870053151,0.9593594,105400.0,105390.0,0.37993932]
[1749870053542,0.6162594,105400.0,105390.0,0.37994393]
[1749870053745,0.7562594,105400.0,105390.0,0.41052561]
[1749870054050,0.7562594,105400.0,105390.0,0.4105202]
[1749870055049,0.7562594,105400.0,105390.0,0.41053127]
[1749870055249,0.7562594,105400.0,105390.0,0.42717916]
[1749870055445,0.7562594,105400.0,105390.0,0.44073481]
[1749870055646,0.7562594,105400.0,105390.0,0.44071905]
[1749870056049,0.7562594,105400.0,105390.0,0.42717916]
[1749870056351,0.7562594,105400.0,105390.0,0.44070384]
[1749870057346,0.7562594,105400.0,105390.0,0.4420076]
[1749870057644,0.7362594,105400.0,105390.0,0.27897228]
[1749870057848,0.7462594,105400.0,105390.0,0.45825228]
[1749870058050,0.7462594,105400.0,105390.0,0.44472804]
[1749870058051,0.9662594,105400.0,105390.0,0.44472804]
[1749870058245,0.7462594,105400.0,105390.0,0.44347658]
[1749870058450,0.9762594,105400.0,105390.0,0.4583091]
[1749870058647,0.9762594,105400.0,105390.0,0.44472807]